[Event "Kragero Resort ELO 2024"]
[Site "Kragero"]
[Date "2024.02.23"]
[Round "5.10"]
[White "Jahr, Even"]
[Black "Kopperud, Vidar Aleksander"]
[Result "1/2-1/2"]
[ECO "E11"]
[WhiteElo "1689"]
[BlackElo "1642"]
[Annotator "NA RC"]
[PlyCount "70"]
[EventDate "2024.02.21"]
[EventType "swiss"]
[EventCountry "NOR"]
[SourceTitle "playchess.com"]
[Source "ChessBase"]
[SourceQuality "1"]
[TimeControl "5400+30"]

1. Nf3 Nf6 2. d4 e6 3. c4 Bb4+ 4. Bd2 Qe7 5. Qc2 Bxd2+ 6. Nbxd2 Nc6 7. a3 a5 8. g3 d6 9. Bg2 O-O 10. O-O a4 11. Rfe1 e5 12. d5 Nb8 13. e4 Nbd7 14. Nb1 Nc5 15. Nc3 Bg4 16. Rf1 Bxf3 17. Bxf3 Nb3 18. Rae1 Nd4 19. Qd1 Nd7 20. Bg2 Nc5 21. f4 Qd7 22. Qh5 Nd3 23. Bh3 Qe7 24. Rb1 Nb3 25. Qe2 Ndc5 26. Rbe1 f6 27. Nd1 Nd4 28. Qg2 Ra6 29. Ne3 g6 30. Ng4 Rb6 31. Ne3 Nd3 32. Rb1 Nc5 33. Rbe1 Nd3 34. Rb1 Nc5 35. Rbe1 {[%emt 1:33:06]} Nd3 {[%emt 1:32:48]} 1/2-1/2

[Event "Kragero Resort ELO 2024"]
[Site "Kragero"]
[Date "2024.02.23"]
[Round "5.11"]
[White "Hoifodt, Jakob Salen"]
[Black "Smedsrud, Petter"]
[Result "1/2-1/2"]
[ECO "D02"]
[WhiteElo "1373"]
[BlackElo "1580"]
[Annotator "NA RC"]
[PlyCount "95"]
[EventDate "2024.02.21"]
[EventType "swiss"]
[EventCountry "NOR"]
[SourceTitle "playchess.com"]
[Source "ChessBase"]
[SourceQuality "1"]
[TimeControl "5400+30"]

1. d4 d5 2. Nf3 Nf6 3. g3 Bf5 4. c4 e6 5. Bg2 Bb4+ 6. Bd2 Bxd2+ 7. Nbxd2 c6 8. O-O Nbd7 9. h3 h6 10. Rc1 O-O 11. e3 Be4 12. Nxe4 Nxe4 13. Nd2 f5 14. cxd5 exd5 15. b4 a6 16. Nxe4 fxe4 17. Qb3 Kh8 18. a4 Nb6 19. Rfd1 Nc4 20. Bxe4 Qf6 21. Rc2 Nxe3 22. Qxe3 Rae8 23. Re2 Rxe4 24. Qd3 Rxe2 25. Qxe2 Qf3 26. Re1 Kg8 27. Qxf3 Rxf3 28. Re3 Rxe3 29. fxe3 Kf7 30. g4 b6 31. Kf2 Ke6 32. Kf3 g6 33. h4 a5 34. bxa5 bxa5 35. Kf4 Kf6 36. Kf3 Ke7 37. Kf4 Kf6 38. Kf3 g5 39. h5 Kf7 40. Ke2 Ke6 41. Kd2 Kd6 42. Kd3 c5 43. dxc5+ Kxc5 44. Kc3 Kc6 45. Kd3 Kc5 46. Kc3 Kc6 47. Kd3 Kc5 {[%emt 1:49:23]} 48. Kc3 {[%emt 1:50:10]} 1/2-1/2

[Event "Kragero Resort ELO 2024"]
[Site "Kragero"]
[Date "2024.02.23"]
[Round "5.12"]
[White "Linkjendal, Sondre Olsen"]
[Black "Kveim, Ingvar Torjesen"]
[Result "0-1"]
[ECO "C59"]
[WhiteElo "1373"]
[BlackElo "1542"]
[Annotator "NA RC"]
[PlyCount "54"]
[EventDate "2024.02.21"]
[EventType "swiss"]
[EventCountry "NOR"]
[SourceTitle "playchess.com"]
[Source "ChessBase"]
[SourceQuality "1"]
[TimeControl "5400+30"]

1. e4 e5 2. Nf3 Nc6 3. Bc4 Nf6 4. Ng5 d5 5. exd5 Na5 6. Bb5+ c6 7. dxc6 bxc6 8. Be2 Nd5 9. Nf3 Bd6 10. d3 O-O 11. c4 Nf4 12. Bxf4 exf4 13. Nbd2 f5 14. a3 c5 15. h4 Bb7 16. h5 h6 17. Qc2 Re8 18. Nh4 Qf6 19. Ndf3 Rab8 20. O-O Nb3 21. Rab1 Nd4 22. Nxd4 Qxh4 23. Nb5 Bxg2 24. Kxg2 f3+ 25. Kxf3 Qf4+ 26. Kg2 Qh2+ 27. Kf3 {[%emt 1:34:54]} Qh3# {[%emt 1:28:05]} 0-1

[Event "Kragero Resort ELO 2024"]
[Site "Kragero"]
[Date "2024.02.23"]
[Round "5.13"]
[White "Nordahl, Christine"]
[Black "Elseth, Florian"]
[Result "1-0"]
[ECO "E39"]
[WhiteElo "1333"]
[BlackElo "1513"]
[Annotator "NA RC"]
[PlyCount "127"]
[EventDate "2024.02.21"]
[EventType "swiss"]
[EventCountry "NOR"]
[SourceTitle "playchess.com"]
[Source "ChessBase"]
[SourceQuality "1"]
[TimeControl "5400+30"]

1. d4 Nf6 2. c4 e6 3. Nc3 Bb4 4. Qc2 c5 5. dxc5 Bxc5 6. Nf3 O-O 7. Bg5 Nc6 8. e3 b6 9. Be2 Bb7 10. O-O h6 11. Bh4 Be7 12. Rfd1 Rc8 13. Rd2 Nh5 14. Bxe7 Qxe7 15. Rad1 Nf6 16. Ne4 d5 17. Nxf6+ Qxf6 18. cxd5 Ne7 19. Qa4 Nxd5 20. e4 Bc6 21. Qa3 Nf4 22. Qxa7 Qg6 23. Nh4 Qxe4 24. Bf3 Nh3+ 25. gxh3 Qxh4 26. Bxc6 Rxc6 27. Qb7 Rfc8 28. Rd6 Rc1 29. Qxb6 Rxd1+ 30. Rxd1 Qxh3 31. Rd8+ Rxd8 32. Qxd8+ Kh7 33. Qd4 e5 34. Qxe5 Qg4+ 35. Kf1 Qd1+ 36. Qe1 Qd3+ 37. Kg2 Qd5+ 38. Kg1 Qxa2 39. b4 Qd5 40. Qb1+ Kg8 41. b5 Qf3 42. Qb4 Qd1+ 43. Kg2 Qd5+ 44. f3 Qg5+ 45. Kf2 Qf5 46. b6 Qc2+ 47. Kg3 Qg6+ 48. Kf2 Qc2+ 49. Ke3 Qc1+ 50. Kd4 Qf4+ 51. Kc5 Qf5+ 52. Kd6 Kf8 53. Kc7+ Kg8 54. b7 Qe5+ 55. Qd6 Qa5+ 56. Kc8 Qc3+ 57. Qc7 Qb3 58. b8=Q Qe6+ 59. Qd7 Qc4+ 60. Kd8 Qc5 61. Qe8+ Kh7 62. Qe4+ g6 63. Qc7 Qf8+ {[%emt 2:02:00]} 64. Qe8 {[%emt 1:25:35]} 1-0

[Event "Kragero Resort ELO 2024"]
[Site "Kragero"]
[Date "2024.02.23"]
[Round "5.14"]
[White "Mortensen, Michael"]
[Black "Alvanjyan, Aida"]
[Result "1/2-1/2"]
[ECO "E06"]
[WhiteElo "1330"]
[BlackElo "1508"]
[Annotator "NA RC"]
[PlyCount "147"]
[EventDate "2024.02.21"]
[EventType "swiss"]
[EventCountry "NOR"]
[SourceTitle "playchess.com"]
[Source "ChessBase"]
[SourceQuality "1"]
[TimeControl "5400+30"]

1. c4 e6 2. g3 d5 3. Bg2 Nf6 4. cxd5 exd5 5. Nf3 Be7 6. O-O O-O 7. d4 c6 8. Nc3 h6 9. Bf4 Nh5 10. Bxb8 Rxb8 11. Ne5 Nf6 12. Qd3 Bd6 13. Rad1 Re8 14. f4 Qb6 15. Qc2 a6 16. Kh1 Ng4 17. Qd2 f6 18. Nxg4 Bxg4 19. Rde1 Rbd8 20. a3 Bb8 21. Na4 Qb5 22. Nc3 Qb6 23. Na4 Qb5 24. Nc3 Qb3 25. e4 dxe4 26. Bxe4 Be6 27. Bb1 Bd5+ 28. Kg1 Ba7 29. Rxe8+ Rxe8 30. Ba2 Qb6 31. Nxd5 cxd5 32. Bxd5+ Kh8 33. Qb4 Qxb4 34. axb4 Bxd4+ 35. Kh1 Re7 36. Rc1 g6 37. Rc8+ Kg7 38. b3 Rd7 39. Bc4 Bb6 40. Re8 Bd4 41. b5 a5 42. Re1 Bc3 43. Rc1 Bb4 44. Rc2 Rd1+ 45. Kg2 Rd2+ 46. Rxd2 Bxd2 47. Kf3 f5 48. b6 Bb4 49. Bd5 Bc5 50. Bxb7 Bxb6 51. h3 Kf6 52. Bd5 Bc7 53. Bc4 Ke7 54. g4 fxg4+ 55. hxg4 Kf6 56. Bd5 Bd6 57. Be4 Kg7 58. f5 g5 59. Ke3 Kf6 60. Kd4 Be5+ 61. Kd5 Bc3 62. Kc4 Bb4 63. Kd5 Bd2 64. Kd4 Bc1 65. Kd5 Bb2 66. Kd6 Ba3+ 67. Kd5 Bf8 68. Kd4 h5 69. Bf3 h4 70. Bg2 Ke7 71. Ke5 Bg7+ 72. Kd5 Kd7 73. Bh3 Bf6 {[%emt 2:04:57]} 74. Bg2 {[%emt 1:00:10]} 1/2-1/2

[Event "Kragero Resort ELO 2024"]
[Site "Kragero"]
[Date "2024.02.23"]
[Round "5.17"]
[White "Kristiansen, David"]
[Black "Matysiak, Tommy"]
[Result "1-0"]
[ECO "B21"]
[WhiteElo "1407"]
[BlackElo "1312"]
[Annotator "NA RC"]
[PlyCount "61"]
[EventDate "2024.02.21"]
[EventType "swiss"]
[EventCountry "NOR"]
[SourceTitle "playchess.com"]
[Source "ChessBase"]
[SourceQuality "1"]
[TimeControl "5400+30"]

1. e4 c5 2. d4 cxd4 3. c3 d3 4. Bxd3 d6 5. Nf3 Nc6 6. h3 Nf6 7. O-O e6 8. c4 Be7 9. Nc3 O-O 10. a3 a5 11. Qe2 d5 12. cxd5 exd5 13. Rd1 d4 14. Nb5 Be6 15. e5 Ne8 16. Nbxd4 Qb6 17. Be3 Nxd4 18. Nxd4 Bc5 19. Nxe6 fxe6 20. Bxc5 Qxc5 21. Rac1 Qb6 22. Rc4 Nc7 23. Qc2 Nd5 24. Bxh7+ Kh8 25. Rh4 Rac8 26. Qe2 Rf4 27. Rh5 Rcf8 28. Bg6+ Kg8 29. Rh8+ Kxh8 30. Qh5+ Kg8 {[%emt 0:27:14]} 31. Qh7# {[%emt 1:14:10]} 1-0

[Event "Kragero Resort ELO 2024"]
[Site "Kragero"]
[Date "2024.02.23"]
[Round "5.18"]
[White "Nordahl, Frederik"]
[Black "Syreng, Gard Alexander Bye"]
[Result "0-1"]
[ECO "B07"]
[WhiteElo "1396"]
[BlackElo "1244"]
[Annotator "NA RC"]
[PlyCount "48"]
[EventDate "2024.02.21"]
[EventType "swiss"]
[EventCountry "NOR"]
[SourceTitle "playchess.com"]
[Source "ChessBase"]
[SourceQuality "1"]
[TimeControl "5400+30"]

1. e4 d6 2. d4 Nf6 3. Nc3 Nbd7 4. Be3 e5 5. f3 Be7 6. Qd2 c6 7. a4 Qc7 8. O-O-O a6 9. g4 b5 10. g5 Nh5 11. dxe5 Nxe5 12. f4 Nc4 13. Bxc4 bxc4 14. f5 Rb8 15. Nb1 Qb7 16. Bd4 c5 17. Bc3 Qxe4 18. Re1 Qxh1 19. Qxd6 O-O 20. Qxb8 Bxg5+ 21. Nd2 Bxf5 22. Qe5 Bxd2+ 23. Kxd2 {[%emt 0:41:06]} Qg2+ {[%emt 0:43:49]} 24. Kc1 {[%emt 0:41:36]} Qxc2# {[%emt 0:44:19]} 0-1

[Event "Kragero Resort ELO 2024"]
[Site "Kragero"]
[Date "2024.02.23"]
[Round "5.19"]
[White "Bollestad, Leiv Ove"]
[Black "Robertsen, Nikolas"]
[Result "1-0"]
[ECO "C54"]
[WhiteElo "1371"]
[BlackElo "1236"]
[Annotator "NA RC"]
[PlyCount "127"]
[EventDate "2024.02.21"]
[EventType "swiss"]
[EventCountry "NOR"]
[SourceTitle "playchess.com"]
[Source "ChessBase"]
[SourceQuality "1"]
[TimeControl "5400+30"]

1. e4 e5 2. Nf3 Nc6 3. Bc4 Bc5 4. c3 Nf6 5. d4 exd4 6. cxd4 Bb4+ 7. Nc3 Bxc3+ 8. bxc3 Nxe4 9. Qe2 d5 10. O-O O-O 11. Qc2 Bg4 12. Bd3 Re8 13. Nd2 Nf6 14. Nb3 Qd7 15. Nc5 Qc8 16. f3 Bh5 17. Bf5 Qb8 18. Rb1 b6 19. Qa4 Ne7 20. Nd7 Nxd7 21. Bxd7 Rd8 22. Ba3 a6 23. Bxe7 b5 24. Bxd8 Qxd8 25. Bxb5 axb5 26. Qxb5 h6 27. Rfe1 f6 28. Rb2 f5 29. Re5 Qg5 30. Qxd5+ Kh7 31. Rbe2 Rd8 32. Qb7 Qc1+ 33. Kf2 Qxc3 34. Rd5 Re8 35. Qb2 Rxe2+ 36. Qxe2 Bf7 37. Rxf5 Qxd4+ 38. Kg3 Qd6+ 39. Re5 Qg6+ 40. Kf2 Qb6+ 41. Re3 Bg6 42. g3 c5 43. Kg2 Qc6 44. Rc3 Bf7 45. a3 h5 46. Qe4+ Qxe4 47. fxe4 c4 48. a4 Be6 49. a5 g5 50. a6 Bc8 51. a7 Bb7 52. Kf3 Kg7 53. Rxc4 Kf6 54. Rc5 Ke6 55. Ra5 Kf6 56. a8=Q Bxa8 57. Rxa8 Ke7 58. Ra6 Kd7 59. e5 Ke7 60. Ke4 Ke8 61. Kf5 h4 62. Kf6 hxg3 63. e6 gxh2 {[%emt 0:56:14]} 64. Ra8# {[%emt 0:43:28]} 1-0

[Event "Kragero Resort ELO 2024"]
[Site "Kragero"]
[Date "2024.02.23"]
[Round "5.21"]
[White "Jorgensen, Catherine"]
[Black "Germiani, Yaro"]
[Result "1-0"]
[ECO "A81"]
[WhiteElo "1351"]
[BlackElo "1287"]
[Annotator "NA RC"]
[PlyCount "75"]
[EventDate "2024.02.21"]
[EventType "swiss"]
[EventCountry "NOR"]
[SourceTitle "playchess.com"]
[Source "ChessBase"]
[SourceQuality "1"]
[TimeControl "5400+30"]

1. d4 f5 2. g3 Nf6 3. Nh3 e6 4. Bg2 Be7 5. Nf4 O-O 6. O-O c6 7. a4 d6 8. c4 e5 9. dxe5 dxe5 10. Nd3 Qc7 11. e3 Rd8 12. Qb3 Kh8 13. Rd1 Na6 14. Bd2 Nc5 15. Nxc5 Bxc5 16. Nc3 Be6 17. Ne2 Rd6 18. Qc2 Rad8 19. b4 Bxb4 20. Bxb4 Rxd1+ 21. Rxd1 Rxd1+ 22. Qxd1 Bxc4 23. Qc2 Bxe2 24. Qxe2 a5 25. Bc3 Nd7 26. Qa2 b6 27. Qe6 Qd8 28. Bxc6 Nf8 29. Qxe5 Qd1+ 30. Kg2 Qg4 31. Qe8 h6 32. Qxf8+ Kh7 33. Bd5 Qxa4 34. Qg8+ Kg6 35. Qxg7+ Kh5 36. Bf3+ Qg4 37. Qf7+ Kg5 {[%emt 1:02:01]} 38. Bf6# {[%emt 1:20:37]} 1-0

[Event "Kragero Resort ELO 2024"]
[Site "Kragero"]
[Date "2024.02.23"]
[Round "5.22"]
[White "Sathish, Githiha"]
[Black "Hagen, Bjorn Stian"]
[Result "1-0"]
[ECO "A45"]
[WhiteElo "1332"]
[BlackElo "1278"]
[Annotator "NA RC"]
[PlyCount "55"]
[EventDate "2024.02.21"]
[EventType "swiss"]
[EventCountry "NOR"]
[SourceTitle "playchess.com"]
[Source "ChessBase"]
[SourceQuality "1"]
[TimeControl "5400+30"]

1. d4 Nf6 2. Bg5 e6 3. e4 Be7 4. Nd2 d5 5. e5 Nfd7 6. Bxe7 Qxe7 7. c3 c5 8. Ngf3 c4 9. b3 b5 10. a4 cxb3 11. Bxb5 b2 12. Ra2 a6 13. Bd3 a5 14. Rxb2 Ba6 15. Bxa6 Rxa6 16. O-O O-O 17. c4 dxc4 18. Nxc4 Nc6 19. Qe2 Nb4 20. Nd6 Nb6 21. Rxb4 axb4 22. Qxa6 Nd5 23. Qc4 Qd7 24. Ra1 Rb8 25. Nd2 h5 26. Nb3 g5 27. Ne4 Rc8 {[%emt 1:25:45]} 28. Qxd5 {[%emt 0:38:39]} 1-0

[Event "Kragero Resort ELO 2024"]
[Site "Kragero"]
[Date "2024.02.23"]
[Round "5.23"]
[White "Sorensen, Vidar Busch"]
[Black "Jullum, Hege Ibsen"]
[Result "1-0"]
[ECO "D05"]
[WhiteElo "1313"]
[BlackElo "1128"]
[Annotator "NA RC"]
[PlyCount "109"]
[EventDate "2024.02.21"]
[EventType "swiss"]
[EventCountry "NOR"]
[SourceTitle "playchess.com"]
[Source "ChessBase"]
[SourceQuality "1"]
[TimeControl "5400+30"]

1. Nf3 d5 2. e3 Nf6 3. b3 c5 4. d4 e6 5. Bb2 Nc6 6. Bb5 Qa5+ 7. Nc3 Ne4 8. Bxc6+ bxc6 9. Ne5 Nxc3 10. Qd2 cxd4 11. Nxc6 Qb6 12. Nxd4 Ne4 13. Qc1 Ba6 14. f3 Nd6 15. a4 Rc8 16. a5 Qb7 17. Kd2 Nb5 18. Ne2 Bb4+ 19. c3 O-O 20. Ra4 Bd6 21. f4 d4 22. exd4 Qxg2 23. Qf1 Bxf4+ 24. Kd1 Qxf1+ 25. Rxf1 Nxc3+ 26. Bxc3 Bxe2+ 27. Kxe2 Rxc3 28. Rxf4 Rxb3 29. h4 Rc8 30. Ra2 Rcc3 31. Rd2 h6 32. d5 exd5 33. Rxd5 Rb2+ 34. Rd2 Rxd2+ 35. Kxd2 Ra3 36. Rf5 g6 37. Rc5 Kg7 38. Ke2 Rh3 39. Rc4 g5 40. hxg5 hxg5 41. Rc7 Ra3 42. Rxa7 Kg6 43. Kf2 f5 44. a6 Kh5 45. Rf7 Rxa6 46. Rxf5 Kg4 47. Re5 Kf4 48. Re2 Ra3 49. Kg2 Kg4 50. Re4+ Kf5 51. Re2 Kf4 52. Rf2+ Kg4 53. Kh2 Kh4 54. Rg2 g4 {[%emt 1:51:41]} 55. Rc2 {[%emt 1:55:58]} 1-0

[Event "Kragero Resort ELO 2024"]
[Site "Kragero"]
[Date "2024.02.23"]
[Round "5.24"]
[White "Nguyen, Tyson Quang Hy"]
[Black "Persson, Michael"]
[Result "1-0"]
[ECO "C55"]
[WhiteElo "1267"]
[BlackElo "1296"]
[Annotator "NA RC"]
[PlyCount "59"]
[EventDate "2024.02.21"]
[EventType "swiss"]
[EventCountry "NOR"]
[SourceTitle "playchess.com"]
[Source "ChessBase"]
[SourceQuality "1"]
[TimeControl "5400+30"]

1. e4 e5 2. Nf3 Nc6 3. Bc4 Be7 4. d3 Nf6 5. c3 d6 6. Be3 O-O 7. Nbd2 a6 8. a4 d5 9. exd5 Nxd5 10. O-O Bg4 11. Qb3 Na5 12. Qc2 Nxc4 13. dxc4 Nxe3 14. fxe3 f6 15. Qe4 Bxf3 16. Nxf3 c6 17. b4 Qc7 18. Rfd1 a5 19. bxa5 Rxa5 20. Qf5 Rd8 21. Nh4 Rd6 22. Rxd6 Bxd6 23. Qe6+ Kf8 24. Rd1 Qe7 25. Qc8+ Kf7 26. Nf5 Qf8 27. Nxd6+ Kg8 28. Qe6+ Kh8 29. Nf7+ Kg8 {[%emt 1:22:03]} 30. Rd8 {[%emt 0:51:38]} 1-0

[Event "Kragero Resort ELO 2024"]
[Site "Kragero"]
[Date "2024.02.23"]
[Round "6.7"]
[White "Kveim, Ingvar Torjesen"]
[Black "Rynning, Rune Kleiven"]
[Result "1/2-1/2"]
[ECO "B90"]
[WhiteElo "1542"]
[BlackElo "1713"]
[Annotator "NA RC"]
[PlyCount "106"]
[EventDate "2024.02.21"]
[EventType "swiss"]
[EventCountry "NOR"]
[SourceTitle "playchess.com"]
[Source "ChessBase"]
[SourceQuality "1"]
[TimeControl "5400+30"]

1. e4 c5 2. Nf3 d6 3. d4 cxd4 4. Nxd4 Nf6 5. Nc3 a6 6. h3 e5 7. Nde2 h5 8. Bg5 Nbd7 9. g3 Be7 10. Bg2 b5 11. a3 Bb7 12. Nc1 Rc8 13. O-O Rc4 14. Re1 Qa8 15. f3 Nxe4 16. Nxe4 Bxe4 17. Bxe7 Bxc2 18. Qd2 Kxe7 19. Ne2 Bg6 20. Nf4 Qa7+ 21. Kh2 Rhc8 22. Rad1 Qc5 23. b4 Qc6 24. Nd5+ Kf8 25. Qg5 Re8 26. f4 Qc8 27. f5 Bh7 28. f6 gxf6 29. Nxf6 Nxf6 30. Qxf6 Re6 31. Qh8+ Bg8 32. Qxh5 Rc2 33. Rf1 Qc6 34. Rg1 Qe4 35. Rc1 Qc4 36. Qg5 Rg6 37. Qe3 Kg7 38. Kh1 Rxc1 39. Rxc1 Qa2 40. Be4 Re6 41. Qg5+ Kf8 42. Rc8+ Re8 43. Rxe8+ Kxe8 44. Qxg8+ Ke7 45. Qg5+ Kd7 46. Bf5+ Kc6 47. Be4+ Kd7 48. Qc1 d5 49. Bf5+ Ke7 50. Qg5+ Kf8 51. Qd8+ Kg7 52. Qg5+ Kf8 53. Qd8+ {[%emt 1:54:36]} Kg7 {[%emt 1:53:57]} 1/2-1/2

[Event "Kragero Resort ELO 2024"]
[Site "Kragero"]
[Date "2024.02.23"]
[Round "6.8"]
[White "Gjersvik, Aksel Elias"]
[Black "Johannessen, Martin T."]
[Result "1/2-1/2"]
[ECO "B23"]
[WhiteElo "1451"]
[BlackElo "1660"]
[Annotator "NA RC"]
[PlyCount "48"]
[EventDate "2024.02.21"]
[EventType "swiss"]
[EventCountry "NOR"]
[SourceTitle "playchess.com"]
[Source "ChessBase"]
[SourceQuality "1"]
[TimeControl "5400+30"]

1. e4 c5 2. Nc3 d6 3. d4 cxd4 4. Qxd4 Nc6 5. Qd2 Nf6 6. b3 g6 7. Bb2 Bg7 8. O-O-O O-O 9. f3 Be6 10. g4 Rc8 11. Nge2 Qa5 12. h4 h5 13. g5 Nd7 14. f4 b5 15. Bh3 Bxh3 16. Rxh3 Nb6 17. Kb1 b4 18. Nd5 Bxb2 19. Kxb2 Nxd5 20. Qxd5 Qxd5 21. Rxd5 Rc7 22. Nd4 Nxd4 23. Rxd4 a5 24. Rhd3 {[%emt 0:32:42]} Rfc8 {[%emt 1:24:31]} 1/2-1/2

[Event "Kragero Resort ELO 2024"]
[Site "Kragero"]
[Date "2024.02.23"]
[Round "6.9"]
[White "Kopperud, Vidar Aleksander"]
[Black "Dale, Marius Hag"]
[Result "0-1"]
[ECO "D12"]
[WhiteElo "1642"]
[BlackElo "1415"]
[Annotator "NA RC"]
[PlyCount "58"]
[EventDate "2024.02.21"]
[EventType "swiss"]
[EventCountry "NOR"]
[SourceTitle "playchess.com"]
[Source "ChessBase"]
[SourceQuality "1"]
[TimeControl "5400+30"]

1. d4 d5 2. c4 c6 3. Nf3 Nf6 4. e3 Bf5 5. Nc3 e6 6. cxd5 exd5 7. Bd3 Bxd3 8. Qxd3 Bb4 9. O-O O-O 10. Ne2 Ne4 11. Ng3 Re8 12. Nd2 Nxg3 13. hxg3 Nd7 14. a3 Bxd2 15. Bxd2 Nf6 16. f3 Nh5 17. Be1 Qd6 18. f4 Nf6 19. Rf3 Ng4 20. Bf2 Qh6 21. Re1 Qh2+ 22. Kf1 Qh1+ 23. Ke2 Qxg2 24. Rg1 Qh2 25. Kf1 Qh3+ 26. Ke2 Nh2 27. Rh1 Qg2 28. Rxh2 Qxh2 29. g4 {[%emt 1:19:38]} Re4 {[%emt 0:57:44]} 0-1

[Event "Kragero Resort ELO 2024"]
[Site "Kragero"]
[Date "2024.02.23"]
[Round "6.10"]
[White "Digernes, Mikael"]
[Black "Shehzad, Alina"]
[Result "1-0"]
[ECO "B20"]
[WhiteElo "1593"]
[BlackElo "1474"]
[Annotator "NA RC"]
[PlyCount "45"]
[EventDate "2024.02.21"]
[EventType "swiss"]
[EventCountry "NOR"]
[SourceTitle "playchess.com"]
[Source "ChessBase"]
[SourceQuality "1"]
[TimeControl "5400+30"]

1. e4 c5 2. a3 g6 3. Nc3 Bg7 4. f4 e6 5. Nf3 d5 6. Bb5+ Bd7 7. Bxd7+ Qxd7 8. d3 Ne7 9. O-O O-O 10. Qe1 Nbc6 11. Qh4 Nd4 12. Nxd4 Bxd4+ 13. Kh1 Bg7 14. Rf3 b5 15. Rh3 h6 16. f5 gxf5 17. Bxh6 Ng6 18. Qh5 Qe8 19. e5 Nf4 20. Bxf4 f6 21. Qh7+ Kf7 22. exf6 Kxf6 {[%emt 1:35:38]} 23. Re1 {[%emt 1:24:53]} 1-0

[Event "Kragero Resort ELO 2024"]
[Site "Kragero"]
[Date "2024.02.23"]
[Round "6.11"]
[White "Smedsrud, Petter"]
[Black "Nordahl, Christine"]
[Result "1-0"]
[ECO "B22"]
[WhiteElo "1580"]
[BlackElo "1333"]
[Annotator "NA"]
[PlyCount "117"]
[EventDate "2024.02.21"]
[EventType "swiss"]
[EventCountry "NOR"]
[SourceTitle "playchess.com"]
[Source "ChessBase"]
[SourceQuality "1"]
[TimeControl "5400+30"]

1. e4 c5 2. Nf3 Nc6 3. c3 Nf6 4. e5 Nd5 5. d4 cxd4 6. cxd4 e6 7. Bc4 d6 8. O-O dxe5 9. dxe5 Be7 10. Qe2 Nb6 11. Bd3 O-O 12. Qe4 g6 13. Bh6 Re8 14. Nc3 Bd7 15. Rac1 Nb4 16. Bb1 Bc6 17. Qe2 N4d5 18. Rfd1 Nxc3 19. Rxc3 Nd5 20. Rcc1 Qb6 21. Ng5 Bf8 22. Qf3 Qc7 23. Bxf8 Rxf8 24. Qh3 h5 25. Nxe6 Qxe5 26. Nxf8 Nf4 27. Qe3 Ne2+ 28. Kf1 Qxe3 29. fxe3 Nxc1 30. Nxg6 fxg6 31. Rxc1 Kg7 32. g3 Rf8+ 33. Ke2 Bb5+ 34. Bd3 Bc6 35. e4 Rf6 36. Ke3 g5 37. Rc5 Kh6 38. e5 Rf3+ 39. Kd4 Rf2 40. Rc2 Rxc2 41. Bxc2 b6 42. e6 Kg7 43. Ke5 Be8 44. Bf5 a5 45. e7 Kf7 46. Kd6 b5 47. Be6+ Kf6 48. Bd7 Kf7 49. Bxe8+ Kxe8 50. h3 g4 51. h4 b4 52. b3 Kf7 53. Kd7 Kf6 54. e8=Q Kg7 55. Qxh5 Kg8 56. Qxg4+ Kh8 57. Ke7 Kh7 58. Kf7 Kh6 {[%emt 0:36:01]} 59. Qg6# {[%emt 2:00:00]} 1-0

[Event "Kragero Resort ELO 2024"]
[Site "Kragero"]
[Date "2024.02.23"]
[Round "6.12"]
[White "Syreng, Gard Alexander Bye"]
[Black "Jahr, Even"]
[Result "1-0"]
[ECO "E06"]
[WhiteElo "1244"]
[BlackElo "1689"]
[Annotator "NA RC"]
[PlyCount "88"]
[EventDate "2024.02.21"]
[EventType "swiss"]
[EventCountry "NOR"]
[SourceTitle "playchess.com"]
[Source "ChessBase"]
[SourceQuality "1"]
[TimeControl "5400+30"]

1. d4 Nf6 2. Nf3 e6 3. g3 d5 4. c4 Be7 5. Bg2 O-O 6. O-O c6 7. Nc3 b6 8. cxd5 cxd5 9. Qc2 Bb7 10. Bf4 Nc6 11. Rad1 Rc8 12. Qb1 h6 13. h3 Ba6 14. Nh2 Bb4 15. Bf3 Qe7 16. Ng4 Na5 17. Qc1 Nxg4 18. hxg4 Bxc3 19. bxc3 g5 20. Bd2 Nc4 21. Kg2 Bb7 22. Rh1 Nxd2 23. Qxd2 Kg7 24. e3 Rc7 25. Qd3 Rfc8 26. Rxh6 Qa3 27. Qh7+ Kf8 28. Qh8+ Ke7 29. Qf6+ Kd6 30. Qe5+ Kd7 31. Rh7 Rf8 32. Qxg5 Rxc3 33. Qf6 Qe7 34. Qxe7+ Kxe7 35. Rd2 Ba6 36. Be2 Bc4 37. g5 Ra3 38. Bh5 Rxa2 39. Rxa2 Bxa2 40. Bxf7 Ra8 41. Be8+ Kf8 42. g6 Bb1 43. Bc6 Rd8 44. Rh8+ {[%emt 1:34:45]} Ke7 {[%emt 1:29:34]} 1-0

[Event "Kragero Resort ELO 2024"]
[Site "Kragero"]
[Date "2024.02.23"]
[Round "6.13"]
[White "Alvanjyan, Aida"]
[Black "Bollestad, Leiv Ove"]
[Result "1-0"]
[ECO "C58"]
[WhiteElo "1508"]
[BlackElo "1371"]
[Annotator "NA RC"]
[PlyCount "56"]
[EventDate "2024.02.21"]
[EventType "swiss"]
[EventCountry "NOR"]
[SourceTitle "playchess.com"]
[Source "ChessBase"]
[SourceQuality "1"]
[TimeControl "5400+30"]

1. e4 e5 2. Nf3 Nc6 3. Bc4 Nf6 4. Ng5 d5 5. exd5 Na5 6. Bb5+ c6 7. dxc6 bxc6 8. Bd3 h6 9. Ne4 c5 10. Bb5+ Bd7 11. Nxf6+ Qxf6 12. Bxd7+ Kxd7 13. O-O Bd6 14. Nc3 h5 15. Qe2 a6 16. Nd5 Qd8 17. d3 Nc6 18. Qf3 Ke8 19. c3 Ne7 20. Ne3 g5 21. Nc4 Kd7 22. Bxg5 Rg8 23. Bxe7 Kxe7 24. Rfe1 f6 25. d4 cxd4 26. cxd4 Rc8 27. dxe5 fxe5 28. Nxe5 {[%emt 0:20:06]} Bb4 {[%emt 0:24:16]} 1-0

[Event "Kragero Resort ELO 2024"]
[Site "Kragero"]
[Date "2024.02.23"]
[Round "6.16"]
[White "Elseth, Florian"]
[Black "Mortensen, Michael"]
[Result "0-1"]
[ECO "E92"]
[WhiteElo "1513"]
[BlackElo "1330"]
[Annotator "NA"]
[PlyCount "87"]
[EventDate "2024.02.21"]
[EventType "swiss"]
[EventCountry "NOR"]
[SourceTitle "playchess.com"]
[Source "ChessBase"]
[SourceQuality "1"]
[TimeControl "5400+30"]

1. d4 Nf6 2. c4 g6 3. Nf3 Bg7 4. Nc3 O-O 5. e4 d6 6. Be2 e5 7. dxe5 dxe5 8. Bg5 Nc6 9. Qxd8 Rxd8 10. Bxf6 Bxf6 11. Nd5 Bg7 12. Nxc7 Rb8 13. O-O Nd4 14. Nxd4 exd4 15. Rfd1 b6 16. Rd2 Rb7 17. Nd5 f5 18. Bf3 fxe4 19. Bxe4 Rbd7 20. Nf4 Bh6 21. g3 Rf8 22. Bd5+ Kh8 23. Rxd4 Bxf4 24. Rxf4 Rxf4 25. gxf4 Re7 26. Rd1 Bf5 27. b4 Rd7 28. Kf1 b5 29. Ke2 bxc4 30. Bxc4 Bg4+ 31. f3 Bxf3+ 32. Kxf3 Rxd1 33. Ke4 Kg7 34. Bd3 Rd2 35. a4 Rxh2 36. a5 Kf6 37. Kd5 Rd2 38. Kc4 Ke6 39. b5 Kd6 40. Be4 Rf2 41. b6 Rxf4 42. Kd4 Rxe4+ 43. Kxe4 axb6 {[%emt 1:22:00]} 44. axb6 {[%emt 1:09:38]} 0-1

[Event "Kragero Resort ELO 2024"]
[Site "Kragero"]
[Date "2024.02.23"]
[Round "6.18"]
[White "Jorgensen, Catherine"]
[Black "Sorensen, Vidar Busch"]
[Result "1-0"]
[ECO "A81"]
[WhiteElo "1351"]
[BlackElo "1313"]
[Annotator "NA"]
[PlyCount "117"]
[EventDate "2024.02.21"]
[EventType "swiss"]
[EventCountry "NOR"]
[SourceTitle "playchess.com"]
[Source "ChessBase"]
[SourceQuality "1"]
[TimeControl "5400+30"]

1. d4 f5 2. g3 g6 3. Nh3 Bg7 4. Nf4 d5 5. Bg2 Nf6 6. h4 h5 7. Nxg6 Rg8 8. Bg5 Be6 9. Nd2 Bf7 10. Nf4 Nc6 11. c3 Qd7 12. Nf3 Ng4 13. Nd3 b6 14. Bf4 O-O-O 15. Ng5 Bg6 16. f3 Nf6 17. Ne5 Nxe5 18. Bxe5 Nh7 19. f4 Nf6 20. Qd3 Kb7 21. c4 Ne4 22. c5 Bxe5 23. fxe5 Nxg5 24. hxg5 f4 25. Qc3 fxg3 26. c6+ Qxc6 27. Qxc6+ Kxc6 28. Rc1+ Kb7 29. Rh3 Be4 30. Rxg3 Bxg2 31. Rxg2 Rg6 32. Kf2 e6 33. e3 Rdg8 34. Rcg1 h4 35. Rg4 c6 36. R1g2 a5 37. Kg1 Rh8 38. Kh2 c5 39. Kh3 c4 40. Rxh4 Rhg8 41. Rhg4 Kc7 42. Kh2 b5 43. Kg1 b4 44. Kf1 c3 45. bxc3 bxc3 46. Ke1 Rb8 47. Kd1 Rb1+ 48. Kc2 Rb2+ 49. Kxc3 Rxg2 50. Rxg2 Kc6 51. a4 Kc7 52. Kd3 Kd7 53. e4 Kd8 54. exd5 exd5 55. Ke3 Ke7 56. Kf4 Ke6 57. Kg4 Rg8 58. Rc2 Kd7 {[%emt 1:56:57]} 59. Rc5 {[%emt 1:33:05]} 1-0